bitfinex/quotes_BTCUSD_20251110
["timestamp","ask_amount","ask_price","bid_price","bid_amount"]
[1762803750191,0.05674737,106030.0,106020.0,0.18864365]
[1762803750396,0.01166,106030.0,106020.0,0.18864365]
[1762803750689,0.02735,106030.0,106020.0,0.18864365]
[1762803750922,0.05214,106030.0,106020.0,0.18864365]
[1762803751074,0.11446926,106030.0,106020.0,0.18864365]
[1762803751275,0.05261857,106030.0,106020.0,0.18864365]
[1762803751481,0.05361857,106030.0,106020.0,0.18864365]
[1762803752407,0.07393842,106030.0,106020.0,0.18864365]
[1762803752612,0.05461857,106030.0,106020.0,0.55338203]
[1762803753479,0.05461857,106030.0,106020.0,0.51238203]
[1762803753695,0.05461857,106030.0,106020.0,0.14764365]
[1762803753902,0.05261857,106030.0,106020.0,0.14764365]
[1762803754469,0.02782857,106030.0,106020.0,0.53124639]
[1762803754702,0.01213857,106030.0,106020.0,0.51260203]
[1762803754919,0.02782857,106030.0,106020.0,0.51260203]
[1762803755147,0.00047857,106030.0,106020.0,0.51282203]
[1762803755351,0.00047857,106030.0,106020.0,0.51260203]
[1762803756278,0.00047857,106030.0,106020.0,0.51360203]
[1762803756910,0.00047857,106030.0,106020.0,0.14886365]
[1762803757167,0.01616857,106030.0,106020.0,0.51438203]
[1762803757391,0.00047857,106030.0,106020.0,0.51460203]
[1762803759792,0.01616857,106030.0,106020.0,0.51438203]
[1762803760603,0.01616857,106030.0,106020.0,0.44438202]
[1762803760984,0.00047857,106030.0,106020.0,0.44460202]
[1762803761786,0.01807929,106030.0,106020.0,0.44482202]
[1762803761991,0.02687965,106030.0,106020.0,0.44482202]
[1762803763938,0.02687965,106030.0,106020.0,0.44460202]
[1762803765158,0.07866965,106030.0,106020.0,0.07964364]
[1762803765939,0.05387965,106030.0,106020.0,0.07964364]
[1762803766322,0.07866965,106030.0,106020.0,0.44438202]
[1762803767600,0.05387965,106030.0,106020.0,0.07964364]
[1762803767738,0.07866965,106030.0,106020.0,0.07964364]
[1762803769598,0.02687965,106030.0,106020.0,0.44460202]
[1762803770900,0.02690623,106030.0,106020.0,0.44460202]
[1762803771116,0.04259623,106030.0,106020.0,0.44460202]
[1762803773263,0.06736623,106030.0,106020.0,0.44438202]
[1762803774697,0.07865623,106030.0,106020.0,0.44438202]
[1762803776129,0.07867514,106030.0,106020.0,0.44438202]
[1762803776921,0.03821514,106030.0,106020.0,0.44460202]
[1762803777129,0.02692514,106030.0,106020.0,0.44460202]
[1762803777775,0.02692514,106030.0,106020.0,0.44482202]
[1762803779219,0.02692514,106030.0,106020.0,0.44460202]
[1762803779602,0.02692514,106030.0,106020.0,0.44482202]
[1762803780967,0.02692514,106030.0,106020.0,0.40308364]
[1762803781178,0.02701061,106030.0,106020.0,0.76782202]
[1762803782146,0.02701061,106030.0,106020.0,0.76760202]
[1762803782356,0.02701061,106030.0,106020.0,0.76782202]
[1762803782971,0.02701061,106030.0,106020.0,0.89673515]
[1762803783600,0.02701061,106030.0,106020.0,0.89695515]
[1762803784989,0.02701061,106030.0,106020.0,1.0450726]
[1762803786372,0.00156659,106050.0,106040.0,0.51160807]
[1762803786570,0.00156659,106050.0,106040.0,0.83282255]
[1762803787402,0.00156659,106050.0,106040.0,0.83304255]
[1762803787710,0.00156659,106050.0,106040.0,0.82304255]
[1762803787882,0.00156659,106050.0,106040.0,0.82260255]
[1762803788082,0.02800659,106050.0,106040.0,0.50260807]
[1762803788287,0.00156659,106050.0,106040.0,0.82504255]
[1762803788597,0.00156659,106050.0,106040.0,0.82482255]
[1762803788824,0.01285659,106050.0,106040.0,0.82482255]
[1762803789022,0.02800659,106050.0,106040.0,0.99733966]
[1762803789242,0.05229659,106050.0,106040.0,0.50360807]
[1762803789456,0.05229659,106050.0,106040.0,0.18060807]
[1762803789669,0.12794313,106050.0,106040.0,0.18060807]
[1762803791769,2.21127089,106050.0,106040.0,0.002]
[1762803791957,1.69223268,106050.0,106040.0,0.002]
[1762803792460,1.28171168,106050.0,106040.0,0.002]
[1762803792700,1.28171168,106050.0,106030.0,0.18862382]
[1762803792924,0.03944,106040.0,106030.0,0.18862586]
[1762803793147,0.03944,106040.0,106020.0,0.08707582]
[1762803793401,0.11508654,106030.0,106020.0,0.08707582]
[1762803794526,0.11508654,106030.0,106010.0,0.18864541]
[1762803794730,0.03944,106020.0,106010.0,0.14812398]
[1762803795882,0.03944,106020.0,106010.0,0.14912398]
[1762803796088,0.23944,106020.0,106010.0,0.19014001]
[1762803796299,0.03944,106020.0,106010.0,0.19114001]
[1762803796546,0.03944,106020.0,106010.0,0.19014001]
[1762803797117,0.03944,106020.0,106010.0,0.18914001]
[1762803797245,0.609279,106020.0,106010.0,0.00047857]
[1762803797614,0.540473,106020.0,106010.0,0.18914001]
[1762803797976,0.59798976,106020.0,106010.0,0.00047857]
[1762803798345,0.82448762,106020.0,106010.0,0.00047857]
[1762803798507,1.31821921,106020.0,106010.0,0.00047857]
[1762803798705,1.06667521,106020.0,106010.0,0.18914001]
[1762803799538,0.57294362,106020.0,106010.0,0.18914001]
[1762803799732,0.39834786,106020.0,106010.0,0.18914001]
[1762803799940,0.37644786,106020.0,106010.0,0.18914001]
[1762803800274,0.26693786,106020.0,106010.0,0.18914001]
[1762803800440,0.06793786,106020.0,106010.0,0.18914001]
[1762803800650,0.07922786,106020.0,106010.0,0.18914001]
[1762803802010,0.07922786,106020.0,106010.0,0.16314001]
[1762803802421,0.27687186,106020.0,106010.0,0.16314001]
[1762803803822,0.27922786,106020.0,106000.0,0.19808211]
[1762803803953,0.11499654,106010.0,106000.0,0.19813001]
[1762803804183,0.13266178,106010.0,106000.0,0.19813001]
[1762803804606,0.14451178,106010.0,106000.0,0.19813001]
[1762803805033,0.69927669,106010.0,106000.0,4.79e-05]
[1762803805257,0.46252242,106010.0,106000.0,0.18872714]
[1762803806526,0.46252242,106010.0,106000.0,4.79e-05]
[1762803806961,0.46252242,106010.0,106000.0,0.18872714]
[1762803807171,0.46252242,106010.0,106000.0,4.79e-05]
[1762803808483,0.95625401,106010.0,106000.0,4.79e-05]
[1762803809075,0.0512,106000.0,105990.0,0.17097907]
[1762803809279,0.06895549,106000.0,105990.0,0.17097907]
[1762803810418,0.06895549,106000.0,105990.0,0.17297907]
[1762803811738,0.04590549,106000.0,105990.0,0.19184877]
[1762803811937,0.02960549,106000.0,105990.0,0.17319907]
[1762803812085,0.04590549,106000.0,105990.0,0.17297907]
[1762803812509,0.06895549,106000.0,105990.0,0.17297907]
[1762803812995,0.04590549,106000.0,105990.0,0.17297907]
[1762803813511,0.06895549,106000.0,105990.0,0.17297907]
[1762803815188,0.04590549,106000.0,105990.0,0.17297907]
[1762803815446,0.01775549,106000.0,105990.0,0.68602036]
[1762803815662,0.01775549,106000.0,105990.0,0.66715066]
[1762803816120,9.025e-05,106000.0,105990.0,0.66693066]
[1762803816346,0.01770611,106000.0,105990.0,0.66693066]
[1762803817190,0.01770611,106000.0,105990.0,0.66715066]
[1762803817993,0.01770611,106000.0,105990.0,0.66693066]
[1762803818812,0.04585611,106000.0,105990.0,0.17297907]
[1762803820309,0.02955611,106000.0,105990.0,0.17319907]
[1762803821530,0.06890611,106000.0,105990.0,0.17297907]
[1762803822147,0.05129025,106000.0,105990.0,0.17297907]
[1762803822353,0.0459089,106000.0,105990.0,0.17297907]
[1762803824134,0.07779967,106000.0,105990.0,0.17297907]
[1762803825090,0.05474967,106000.0,105990.0,0.17297907]
[1762803825820,0.07779967,106000.0,105990.0,0.17297907]
[1762803828785,0.05474967,106000.0,105990.0,0.17297907]
[1762803828991,0.05474967,106000.0,105990.0,0.49423606]
[1762803829152,0.03844967,106000.0,105990.0,0.49445606]
[1762803831527,0.05422328,106000.0,105990.0,0.49423606]
[1762803831728,0.07727328,106000.0,105990.0,0.49423606]
[1762803831933,0.05422328,106000.0,105990.0,0.49423606]
[1762803832349,0.05422328,106000.0,105990.0,0.17297907]
[1762803832704,0.05422328,106000.0,105990.0,0.49423606]
[1762803833320,0.07849328,106000.0,105990.0,0.49423606]
[1762803834746,0.05422328,106000.0,105990.0,0.49489606]
[1762803834959,0.02650942,106000.0,105990.0,0.17363907]
[1762803835171,0.02650942,106000.0,105990.0,0.49489606]
[1762803835860,0.02650942,106000.0,105990.0,0.49555606]
[1762803836421,0.01766865,106000.0,105990.0,0.49555606]
[1762803837508,0.01766865,106000.0,105990.0,0.49489606]
[1762803837717,0.01766865,106000.0,105990.0,0.49555606]
[1762803839219,0.02651899,106000.0,105990.0,0.49555606]
[1762803839428,0.01766865,106000.0,105990.0,0.49555606]
[1762803839961,0.01653291,106000.0,105990.0,0.49555606]
[1762803840362,0.01153291,106000.0,105990.0,0.49555606]
[1762803840609,0.01153291,106000.0,105990.0,0.81681305]
[1762803840784,0.01153291,106000.0,105990.0,0.49555606]
[1762803841529,0.01153291,106000.0,105990.0,0.81681305]
[1762803841671,0.01153291,106000.0,105990.0,0.49555606]
[1762803842285,0.01153291,106000.0,105990.0,0.81681305]
[1762803842800,0.01153291,106000.0,105990.0,0.49555606]
[1762803844116,0.03423,106020.0,106010.0,0.18866144]
[1762803844347,0.04317148,106020.0,106010.0,0.18866144]
[1762803844571,0.05902148,106020.0,106010.0,0.18866144]
[1762803845054,0.39929365,106020.0,106010.0,0.18866144]
[1762803845336,0.38025544,106020.0,106010.0,0.18866144]
[1762803845548,0.38125544,106020.0,106010.0,0.18866144]
[1762803846138,0.38225544,106020.0,106010.0,0.18866144]
[1762803846780,0.06102148,106020.0,106000.0,0.50989704]
[1762803846924,0.05058,106010.0,106000.0,0.50989704]
[1762803847115,0.05943115,106010.0,106000.0,0.18866308]
[1762803847485,0.05943115,106010.0,106000.0,0.50989704]
[1762803847626,0.05943115,106010.0,106000.0,0.18866308]
[1762803847828,0.13507769,106010.0,106000.0,0.18866308]
[1762803848212,0.45631165,106010.0,105990.0,0.18041392]
[1762803848387,0.05058,106000.0,105990.0,0.18041392]
[1762803848595,0.05943115,106000.0,105990.0,0.18041392]
[1762803849890,0.0594311,106000.0,105990.0,0.18141392]
[1762803850305,0.0594311,106000.0,105990.0,0.18241392]
[1762803852290,0.07713073,106000.0,105990.0,0.18241392]
[1762803852704,0.78721698,106000.0,105990.0,0.00223413]
[1762803852915,0.43884,105990.0,105970.0,0.22652095]
[1762803853175,0.4245205,105980.0,105970.0,0.02835885]
[1762803853340,0.46516013,105980.0,105970.0,0.21709151]
[1762803853559,0.47400839,105980.0,105970.0,0.18873266]
[1762803853768,0.47400839,105980.0,105960.0,0.19806439]
[1762803853973,0.39085217,105970.0,105960.0,0.19806439]
[1762803854178,0.38951359,105970.0,105960.0,0.19806439]
[1762803854391,0.38951359,105970.0,105960.0,0.19815464]
[1762803855334,0.06827963,105970.0,105960.0,0.19815464]
[1762803856117,0.06827963,105970.0,105960.0,0.19915464]
[1762803856329,0.06827963,105970.0,105960.0,0.20015464]
[1762803857246,0.11597464,105970.0,105960.0,0.19071712]
[1762803857392,0.4372086,105970.0,105960.0,0.19071712]
[1762803857792,0.4372086,105970.0,105960.0,0.19084072]
[1762803857793,0.8185956,105970.0,105960.0,0.19084072]
[1762803857994,0.7273886,105970.0,105960.0,0.00209025]
[1762803858621,0.73621445,105970.0,105960.0,0.00109025]
[1762803859023,0.73621445,105970.0,105960.0,0.00179287]
[1762803859222,0.7273886,105970.0,105960.0,0.00179287]
[1762803859463,0.7273886,105970.0,105960.0,0.18954334]
[1762803859660,0.57130359,105970.0,105960.0,0.18954334]
[1762803860234,0.57124078,105970.0,105960.0,0.18954334]
[1762803860438,0.38945078,105970.0,105960.0,0.18954334]
[1762803860947,0.06821682,105970.0,105960.0,0.18954334]
[1762803861851,0.06821682,105970.0,105960.0,0.00079287]
[1762803862055,0.43470472,105970.0,105960.0,0.18954334]
[1762803862476,0.11347076,105970.0,105960.0,0.18954334]
[1762803862679,0.43470472,105970.0,105960.0,0.18954334]
[1762803862890,0.38945078,105970.0,105960.0,0.18954334]
[1762803864004,0.38945078,105970.0,105960.0,0.14154334]
[1762803864249,0.06821682,105970.0,105960.0,0.14154334]
[1762803864496,0.38945078,105970.0,105960.0,0.14154334]
[1762803865680,0.06821682,105970.0,105960.0,0.14154334]
[1762803866901,0.02942682,105970.0,105960.0,0.4656673]
[1762803867083,0.06904682,105970.0,105960.0,0.4627773]
[1762803870604,0.01763682,105970.0,105960.0,0.78690126]
[1762803870928,0.02983682,105970.0,105960.0,0.07443333]
[1762803871131,0.02983682,105970.0,105960.0,0.71690125]
[1762803871368,0.08350316,105970.0,105960.0,0.07154333]
[1762803871576,0.08350316,105970.0,105960.0,0.39277729]
[1762803871785,0.01763682,105970.0,105960.0,0.71690125]
[1762803872017,0.01763682,105970.0,105960.0,0.71979125]
[1762803872227,0.01763682,105970.0,105960.0,0.71690125]
[1762803875371,0.02983682,105970.0,105960.0,0.71690125]
[1762803877997,0.04626682,105970.0,105960.0,0.71690125]
[1762803878294,0.04626682,105970.0,105960.0,0.71401125]
[1762803878514,0.04626682,105970.0,105960.0,0.71690125]
[1762803878691,0.04626682,105970.0,105960.0,0.83410839]
[1762803878917,0.04626682,105970.0,105960.0,0.83121839]
[1762803882033,0.01763682,105970.0,105960.0,0.83699839]
[1762803882228,0.01763682,105970.0,105960.0,0.83410839]
[1762803882433,0.02983682,105970.0,105960.0,0.83410839]
[1762803883131,0.03868657,105970.0,105960.0,0.83410839]
[1762803883939,0.02983682,105970.0,105960.0,0.83410839]
[1762803884381,0.04626682,105970.0,105960.0,0.83121839]
[1762803884780,0.06945682,105970.0,105960.0,0.83121839]
[1762803885787,0.06945682,105970.0,105960.0,0.50998443]
[1762803886005,0.06945682,105970.0,105960.0,0.83121839]
[1762803886814,0.42541833,105970.0,105960.0,0.18875047]
[1762803887021,0.07830551,105970.0,105960.0,0.18875047]
[1762803887511,0.07830551,105970.0,105960.0,0.50998443]
[1762803887754,0.07830551,105970.0,105960.0,0.18875047]
[1762803887886,0.07830551,105970.0,105960.0,0.50998443]
[1762803889446,0.03868551,105970.0,105960.0,0.83410839]
[1762803889615,0.03868551,105970.0,105960.0,0.83121839]
[1762803889822,0.07830551,105970.0,105960.0,0.50998443]
[1762803890245,0.12700311,105970.0,105960.0,0.50998443]
[1762803890445,0.07830551,105970.0,105960.0,0.18875047]
[1762803891189,0.07830551,105970.0,105950.0,0.18869002]
[1762803891394,0.05182,105960.0,105950.0,0.50992398]
[1762803891599,0.06945682,105960.0,105950.0,0.50992398]
[1762803892338,0.04626682,105960.0,105950.0,0.50992398]
[1762803892541,0.02983682,105960.0,105950.0,0.51281398]
[1762803895646,0.02983682,105960.0,105950.0,0.19158002]
[1762803895847,0.02983682,105960.0,105950.0,0.51281398]
[1762803897028,0.02983682,105960.0,105950.0,0.51304824]
[1762803898386,0.04547682,105960.0,105950.0,0.51015824]
[1762803898598,0.0752145,105960.0,105950.0,0.18892428]
[1762803898804,0.06944682,105960.0,105950.0,0.18892428]
[1762803898932,0.06944682,105960.0,105950.0,0.51015824]
[1762803901059,0.04547682,105960.0,105950.0,0.51304824]
[1762803901266,0.06944682,105960.0,105950.0,0.51015824]
[1762803902324,0.06944682,105960.0,105950.0,0.18892428]
[1762803902705,0.06944682,105960.0,105950.0,0.51015824]
[1762803902903,0.06944682,105960.0,105950.0,0.18892428]
[1762803903120,0.06944682,105960.0,105950.0,0.51015824]
[1762803904504,0.01763682,105960.0,105950.0,0.51593824]
[1762803904711,0.05387383,105970.0,105960.0,0.18875047]
[1762803904913,0.06272576,105970.0,105960.0,0.50998443]
[1762803905107,0.03875576,105970.0,105960.0,0.50998443]
[1762803905266,0.05439576,105970.0,105960.0,0.50998443]
[1762803905474,0.07836576,105970.0,105960.0,0.50998443]
[1762803905880,0.07936576,105970.0,105960.0,0.18875047]
[1762803906116,0.08036576,105970.0,105960.0,0.50998443]
[1762803906880,0.08036576,105970.0,105960.0,0.51020677]
[1762803907266,0.04047576,105970.0,105960.0,0.51309677]
[1762803907485,0.08008576,105970.0,105960.0,0.51020677]
[1762803907946,0.05611576,105970.0,105960.0,0.44120677]
[1762803908157,0.04726384,105970.0,105960.0,0.44120677]
[1762803908774,0.01970384,105970.0,105960.0,0.44698677]
[1762803910014,0.01870384,105970.0,105960.0,0.44698677]
[1762803910809,0.01770384,105970.0,105960.0,0.44698677]
[1762803911896,0.01770384,105970.0,105960.0,1.09144307]
[1762803912071,0.01770384,105970.0,105960.0,0.79834914]
[1762803912721,0.01770384,105970.0,105960.0,0.44564047]
[1762803912928,0.01770384,105970.0,105960.0,0.76709677]
[1762803913326,0.04526384,105970.0,105960.0,0.76420677]
[1762803916325,0.06923384,105970.0,105960.0,0.76420677]
[1762803916535,0.06923384,105970.0,105960.0,0.44275047]
[1762803916728,0.04526384,105970.0,105960.0,0.76420677]
[1762803916958,0.06923384,105970.0,105960.0,0.44275047]
[1762803918741,0.06923384,105970.0,105960.0,0.76420677]
[1762803919366,0.04526384,105970.0,105960.0,0.76420677]
[1762803919570,0.01770384,105970.0,105960.0,0.76998677]
[1762803922845,0.01770384,105970.0,105960.0,1.09144307]
[1762803923301,0.01770384,105970.0,105960.0,0.76998677]
[1762803923753,0.02920384,105970.0,105960.0,0.44564047]
[1762803923960,0.01770384,105970.0,105960.0,0.76709677]
[1762803924364,0.01770384,105970.0,105960.0,0.76998677]
[1762803924630,0.01770384,105970.0,105960.0,1.09144307]
[1762803925439,0.01770384,105970.0,105960.0,0.76998677]
[1762803927231,0.01770384,105970.0,105960.0,1.09144307]
[1762803927429,0.01770384,105970.0,105960.0,0.76998677]
[1762803927663,0.01770384,105970.0,105960.0,1.09144307]
[1762803928318,0.01770384,105970.0,105960.0,0.76998677]
[1762803928533,0.01770384,105970.0,105960.0,0.76709677]
[1762803929217,0.01770384,105970.0,105960.0,0.76998677]
[1762803930410,0.01770384,105970.0,105960.0,1.09144307]
[1762803930822,0.01770384,105970.0,105960.0,1.11980383]
[1762803931228,0.03493,105990.0,105980.0,0.18871485]
[1762803931447,0.05275967,105990.0,105980.0,0.18871485]
[1762803931604,0.06783967,105990.0,105980.0,0.18871485]
[1762803931989,0.01782967,105990.0,105980.0,0.51884115]
[1762803932186,0.01782967,105990.0,105980.0,0.51595115]
[1762803932422,0.04940967,105990.0,105980.0,0.51306115]
[1762803932808,0.04640967,105990.0,105980.0,0.51306115]
[1762803933212,0.06954967,105990.0,105980.0,0.19160485]
[1762803933429,0.06754967,105990.0,105980.0,0.19160485]
[1762803934589,0.07639565,105990.0,105980.0,0.19160485]
[1762803935085,0.07639565,105990.0,105980.0,0.14560485]
[1762803935268,0.07639565,105990.0,105980.0,0.14271485]
[1762803940274,0.07639565,105990.0,105980.0,0.16158633]
[1762803940636,0.07639565,105990.0,105980.0,0.1415261]
[1762803942160,0.07639565,105990.0,105980.0,0.13639758]
[1762803943768,0.07639565,105990.0,105980.0,0.1175261]
[1762803943976,0.07639565,105990.0,105980.0,0.13639758]
[1762803944355,0.07639565,105990.0,105980.0,0.1175261]
[1762803945215,0.03817565,105990.0,105980.0,0.4418724]
[1762803945440,0.07639565,105990.0,105980.0,0.1175261]
[1762803945845,0.08536055,105990.0,105980.0,0.1175261]
[1762803946670,0.07639565,105990.0,105980.0,0.1175261]
[1762803947690,0.15204219,105990.0,105980.0,0.1175261]
[1762803949122,0.15206879,105990.0,105980.0,0.1175261]
[1762803949333,0.15206879,105990.0,105980.0,0.0965261]
[1762803954308,0.4925633,105990.0,105980.0,0.18871485]
[1762803954513,0.52220294,105990.0,105980.0,0.18871485]
[1762803954978,0.52220912,105990.0,105970.0,0.18871647]
[1762803955210,0.05089,105980.0,105970.0,0.18871647]
[1762803955416,0.07745486,105980.0,105970.0,0.18871647]
[1762803956054,0.44835514,105980.0,105960.0,0.12918799]
[1762803956295,0.12665654,105970.0,105950.0,0.00312426]
[1762803956550,0.04737821,105960.0,105950.0,0.18876828]
[1762803956763,0.04605197,105960.0,105950.0,0.18876828]
[1762803956983,0.06872197,105960.0,105950.0,0.18876828]
[1762803957200,0.07757628,105960.0,105950.0,0.18876828]
[1762803957415,0.06872197,105960.0,105950.0,0.18976828]
[1762803957635,0.07757266,105960.0,105950.0,0.18976828]
[1762803957858,0.07757266,105960.0,105950.0,0.18876828]
[1762803959242,0.02656266,105960.0,105950.0,0.51311458]
[1762803959491,0.02656266,105960.0,105950.0,0.51600458]
[1762803959699,0.01771197,105960.0,105950.0,0.51600458]
[1762803960639,0.01771197,105960.0,105950.0,0.83900458]
[1762803960864,0.08756654,105970.0,105960.0,0.51175047]
[1762803961080,0.10524752,105970.0,105960.0,0.83609677]
[1762803961747,0.09332752,105970.0,105960.0,0.83609677]
[1762803962006,0.01768098,105970.0,105960.0,1.16044307]
[1762803962410,0.01206357,105990.0,105980.0,0.18871485]
[1762803962565,0.05500261,105990.0,105980.0,0.19160485]
[1762803962978,0.07767261,105990.0,105980.0,0.18871485]
[1762803963536,0.07767261,105990.0,105980.0,0.14971485]
[1762803964954,0.05500261,105990.0,105980.0,0.14971485]
[1762803966227,0.05500261,105990.0,105980.0,0.47117115]
[1762803966427,0.05500261,105990.0,105980.0,0.14971485]
[1762803967049,0.07767261,105990.0,105980.0,0.14971485]
[1762803968989,0.07767261,105990.0,105980.0,0.4710676]
[1762803969712,0.05500261,105990.0,105980.0,0.4710676]
[1762803970308,0.02666261,105990.0,105980.0,0.79820035]
[1762803970825,0.01782293,105990.0,105980.0,0.77120035]
[1762803971907,0.01782293,105990.0,105980.0,0.76831035]
[1762803972308,0.01782293,105990.0,105980.0,0.76931035]
[1762803974875,0.01782293,105990.0,105980.0,0.77220035]
[1762803975044,0.01782293,105990.0,105980.0,0.76931035]
[1762803977067,0.06883293,105990.0,105980.0,0.12371485]
[1762803977404,0.06883293,105990.0,105980.0,0.4450676]
[1762803977782,0.04616293,105990.0,105980.0,0.4450676]
[1762803978391,0.02974293,105990.0,105980.0,0.4479576]
[1762803979358,0.01782293,105990.0,105980.0,0.76931035]
[1762803979777,0.06883293,105990.0,105980.0,0.4450676]
[1762803980316,0.01782293,105990.0,105980.0,0.77220035]
[1762803981362,0.01782293,105990.0,105980.0,0.76931035]
[1762803981995,0.01782293,105990.0,105980.0,0.77220035]
[1762803982620,0.01780762,105990.0,105980.0,0.77220035]
[1762803982930,0.01780762,105990.0,105980.0,0.76931035]
[1762803984362,0.03003762,105990.0,105980.0,0.76642035]
[1762803984569,0.03003762,105990.0,105980.0,0.76931035]
[1762803984752,0.01780762,105990.0,105980.0,1.09520035]
[1762803985106,0.01780762,105990.0,105980.0,1.09231035]
[1762803985316,0.01780762,105990.0,105980.0,1.09520035]
[1762803986413,0.00014357,105990.0,105980.0,1.09520035]
[1762803986799,0.00014357,105990.0,105980.0,0.9724855]
[1762803987211,0.00014357,105990.0,105980.0,1.29383825]
[1762803987490,0.00014357,105990.0,105980.0,0.9724855]
[1762803988514,0.00014357,105990.0,105980.0,1.0008409]
[1762803991019,0.00014357,105990.0,105980.0,0.9979509]
[1762803991182,0.00014357,105990.0,105980.0,1.0008409]
[1762803992990,0.00014357,105990.0,105980.0,0.9979509]
[1762803993181,0.00014357,105990.0,105980.0,0.3552454]
[1762803993182,0.01237357,105990.0,105980.0,0.3552454]
[1762803993373,0.01237357,105990.0,105980.0,0.9695955]
[1762803993688,0.0300572,105990.0,105980.0,0.32689]
[1762803993889,0.03681126,105990.0,105980.0,0.9667055]
[1762803994112,0.07784011,105990.0,105980.0,0.001]
[1762803995084,0.07784011,105990.0,105980.0,0.32235275]
[1762803995391,0.03890011,105990.0,105980.0,0.6465955]
[1762803995592,0.02667011,105990.0,105980.0,0.6465955]
[1762803995799,0.0178272,105990.0,105980.0,0.6494855]
[1762803996071,0.0178272,105990.0,105980.0,0.9724855]
[1762803996636,0.0178272,105990.0,105980.0,1.00084304]
[1762803997946,0.0178272,105990.0,105980.0,0.99795304]
[1762803998160,0.0178272,105990.0,105980.0,1.00084304]
[1762804000425,0.01783476,105990.0,105980.0,1.00084304]
[1762804000864,0.01783476,105990.0,105980.0,1.18955789]
[1762804002017,0.01783476,105990.0,105980.0,1.18666789]
[1762804002232,0.01783476,105990.0,105980.0,0.54396239]
[1762804002415,0.01783476,105990.0,105980.0,1.18666789]
[1762804002559,0.01783476,105990.0,105980.0,1.18955789]
[1762804005185,0.01783476,105990.0,105980.0,1.51091064]
[1762804005424,0.00014357,105990.0,105980.0,1.51091064]
[1762804005646,0.00014357,105990.0,105980.0,1.18955789]
[1762804005876,0.00124293,105990.0,105980.0,1.18955789]
[1762804010201,0.00124293,105990.0,105980.0,1.51091064]
[1762804013612,0.00124293,105990.0,105980.0,1.18955789]
[1762804013775,0.00124293,105990.0,105980.0,1.51091064]
[1762804017731,1e-08,105990.0,105980.0,1.51091064]
[1762804017907,1e-08,105990.0,105980.0,1.57853125]
[1762804018136,0.05382053,106050.0,106040.0,0.51160807]
[1762804018410,0.07974527,106080.0,106070.0,0.18855472]
[1762804018411,0.00028,106080.0,106070.0,0.18855472]
[1762804018645,0.00309881,106080.0,106070.0,0.83415022]
[1762804018851,0.00309881,106080.0,106070.0,1.18837483]
[1762804019053,0.02959668,106080.0,106070.0,1.18837483]
[1762804019261,0.00309881,106080.0,106070.0,1.18837483]
[1762804019882,0.00309881,106080.0,106070.0,1.18786483]
[1762804022273,0.02066727,106080.0,106070.0,1.18786483]
[1762804023674,0.04449331,106080.0,106070.0,0.54226933]
[1762804023895,0.06770331,106080.0,106070.0,0.21637933]
[1762804024100,0.06770331,106080.0,106070.0,0.53824208]
[1762804024500,0.02944331,106080.0,106070.0,0.54113208]
[1762804024947,0.02944331,106080.0,106070.0,0.86537483]
[1762804025197,0.02944331,106080.0,106070.0,1.18837483]
[1762804025607,1e-08,106080.0,106070.0,1.18837483]
[1762804025776,1e-08,106080.0,106070.0,1.50972758]
[1762804026192,0.00027003,106100.0,106090.0,0.18851918]
[1762804026358,0.00041375,106100.0,106090.0,1.15711468]
[1762804026558,0.00041375,106100.0,106090.0,1.16000468]
[1762804026981,0.00041375,106100.0,106090.0,1.15900468]
[1762804027749,0.00141375,106100.0,106090.0,1.15900468]
[1762804028244,0.00141375,106100.0,106090.0,0.51340918]
[1762804028446,0.00141375,106100.0,106090.0,1.1873326]
[1762804028791,0.00141375,106100.0,106090.0,1.50868535]
[1762804029009,0.00141375,106100.0,106090.0,1.18550028]
[1762804029510,0.00141375,106100.0,106090.0,0.86506369]
[1762804029959,0.00041375,106100.0,106090.0,0.86506369]
[1762804030366,0.00041375,106100.0,106090.0,0.86706369]
[1762804030811,0.00041375,106100.0,106090.0,0.90264385]
[1762804031028,0.00041375,106100.0,106090.0,0.86906369]
[1762804031178,1e-08,106100.0,106090.0,1.18950028]
[1762804031378,1e-08,106100.0,106090.0,1.22568256]
[1762804031991,1e-08,106100.0,106090.0,0.58480938]
[1762804032580,0.0002,106110.0,106100.0,0.51728141]
[1762804032581,1e-08,106110.0,106100.0,0.51728141]
[1762804033180,0.0002,106120.0,106110.0,0.22466592]
[1762804033312,0.0002,106130.0,106120.0,0.51146588]
[1762804033513,0.0002,106130.0,106120.0,1.15811906]
[1762804034138,0.0002,106130.0,106120.0,0.83479247]
[1762804034741,0.05016,106130.0,106120.0,0.001]
[1762804034943,0.05644607,106130.0,106120.0,0.001]
[1762804035254,0.05644607,106130.0,106110.0,0.18848337]
[1762804035457,0.02695,106130.0,106120.0,0.18846588]
[1762804035661,0.0119,106130.0,106120.0,0.18846588]
[1762804035981,0.05016,106130.0,106110.0,0.18848337]
[1762804036130,0.01505,106120.0,106110.0,0.18848337]
[1762804036354,0.03826,106120.0,106110.0,0.18848337]
[1762804036754,0.01505,106120.0,106110.0,0.18848337]
[1762804036961,0.03826,106120.0,106110.0,0.18848337]
[1762804037596,0.0644332,106120.0,106110.0,0.18848337]
[1762804038368,0.0412232,106120.0,106110.0,0.18848337]
[1762804038789,0.0261732,106120.0,106110.0,0.19137337]
[1762804039422,0.0412232,106120.0,106110.0,0.18848337]
[1762804040615,0.0261732,106120.0,106110.0,0.63652344]
[1762804040819,0.0261732,106120.0,106110.0,0.63941344]
[1762804041025,0.0261732,106120.0,106110.0,0.63652344]
[1762804041399,0.0412232,106120.0,106110.0,0.63363344]
[1762804041761,0.0644332,106120.0,106110.0,0.14048337]
[1762804044885,0.0536432,106110.0,106100.0,0.18849612]
[1762804045273,0.0381632,106110.0,106100.0,0.18849612]
[1762804045477,0.0381632,106110.0,106100.0,0.19138612]
[1762804045675,0.0785632,106110.0,106100.0,0.18849612]
[1762804045899,0.0536432,106110.0,106100.0,0.18849612]
[1762804046303,0.0536432,106110.0,106100.0,0.18235952]
[1762804047214,0.0536432,106110.0,106100.0,0.17315462]
[1762804048319,0.0785632,106110.0,106100.0,0.14955244]
[1762804050271,0.0536432,106110.0,106100.0,0.14955244]
[1762804050738,0.0381632,106110.0,106100.0,0.15244244]
[1762804050968,0.0536432,106110.0,106100.0,0.64270251]
[1762804051158,0.0381632,106110.0,106100.0,0.64559251]
[1762804051546,0.0381632,106110.0,106100.0,0.14955244]
[1762804051961,0.0536432,106110.0,106100.0,0.14955244]
[1762804054101,0.0785632,106110.0,106100.0,0.14955244]
[1762804054295,0.0785632,106110.0,106100.0,0.13727944]
[1762804056700,0.0989037,106110.0,106100.0,0.13727944]
[1762804057066,0.0989037,106110.0,106100.0,0.12807428]
[1762804057677,0.0989037,106110.0,106100.0,0.05807427]
[1762804057875,0.0785632,106110.0,106100.0,0.05807427]
[1762804058277,0.0785632,106110.0,106100.0,0.37871959]
[1762804059201,0.09890264,106110.0,106100.0,0.18850141]
[1762804059631,0.41954796,106110.0,106090.0,0.19694513]
[1762804059833,0.0404,106100.0,106090.0,0.19694513]
[1762804060175,0.0665732,106100.0,106090.0,0.19694513]